bitfinex/quotes_ETHUSD_20220213
["timestamp","ask_amount","ask_price","bid_price","bid_amount"]
[1644732054578,0.01012542,2916.8,2916.6,0.44916328]
[1644732055379,0.02135917,2917.2,2916.6,0.44916328]
[1644732055778,0.01012542,2916.8,2916.6,0.44916328]
[1644732056620,0.02135917,2917.2,2916.6,0.44916328]
[1644732056822,0.01014253,2916.8,2916.5,1.2122]
[1644732057821,0.02135917,2917.2,2916.5,1.2122]
[1644732058021,0.01014259,2916.8,2916.5,1.2122]
[1644732059027,0.02135917,2917.2,2916.5,1.2122]
[1644732059232,0.01014259,2916.8,2916.5,1.2122]
[1644732060183,1.07643995,2916.8,2916.5,1.2122]
[1644732060379,1.07643995,2916.8,2916.1,7.1439]
[1644732060380,3.28205918,2916.7,2916.1,7.1439]
[1644732060576,1.08657889,2916.8,2916.0,1.47449994]
[1644732061173,3.32211385,2916.7,2916.0,1.47449994]
[1644732061374,1.07643995,2916.8,2916.0,1.47449994]
[1644732061676,0.01013924,2916.5,2916.0,1.47449994]
[1644732062679,1.07643995,2916.8,2916.0,1.47449994]
[1644732062878,0.01013942,2916.4,2916.0,1.47449994]
[1644732063928,3.33627214,2916.7,2916.0,1.47449994]
[1644732064126,0.01014005,2916.4,2916.0,1.47449994]
[1644732066129,3.29242596,2916.7,2916.0,1.47449994]
[1644732066532,0.01014005,2916.4,2916.0,1.47449994]
[1644732066927,0.01014005,2916.4,2916.0,0.27639994]
[1644732067571,3.61140743,2916.7,2916.0,0.27639994]
[1644732067776,0.01014005,2916.4,2916.0,0.27639994]
[1644732067974,0.01014005,2916.4,2915.9,0.01014186]
[1644732068674,3.74340071,2916.7,2915.8,0.17209129]
[1644732068875,3.74340071,2916.7,2915.9,0.01014165]
[1644732068876,0.01013984,2916.4,2915.9,0.01014165]
[1644732069577,1.45865218,2916.3,2915.9,0.01014165]
[1644732069777,1.45865218,2916.3,2915.8,0.17209129]
[1644732069979,3.82937254,2916.7,2915.8,0.17209129]
[1644732070184,1.11418202,2916.3,2915.9,0.01014165]
[1644732070384,5.12994822,2916.2,2915.9,0.01014165]
[1644732070581,1.45864822,2916.1,2915.9,0.01014165]
[1644732070777,1.45864822,2916.1,2915.3,0.00296248]
[1644732070778,0.02028329,2915.8,2915.3,0.00296248]
[1644732070979,1.45864822,2915.7,2915.3,0.00296248]
[1644732072422,1.45864822,2915.7,2915.4,0.0101551]
[1644732073034,0.02028329,2915.8,2915.4,0.0101551]
[1644732073225,1.45899312,2915.7,2915.4,0.0101551]
[1644732073425,0.02028329,2915.8,2915.3,0.00296248]
[1644732073623,1.45898376,2915.7,2915.5,0.01015498]
[1644732074227,0.02028329,2915.8,2915.5,0.01015498]
[1644732074627,0.02028329,2915.8,2915.3,0.00296248]
[1644732074829,0.02028329,2915.8,2915.5,0.01015492]
[1644732075879,0.02028329,2915.8,2915.3,0.00296248]
[1644732076079,0.02028329,2915.8,2915.5,0.01014692]
[1644732077081,0.02028329,2915.8,2915.3,0.00296248]
[1644732077379,0.02028329,2915.8,2915.5,0.01014692]
[1644732078285,0.02028329,2915.8,2915.3,0.00296248]
[1644732078722,0.02028329,2915.8,2915.1,0.00296248]
[1644732079727,0.94216429,2915.7,2915.3,0.01014788]
[1644732080529,0.94216429,2915.7,2915.4,0.03653092]
[1644732080933,0.02028329,2915.8,2915.4,0.04667874]
[1644732082031,0.02028329,2915.8,2915.5,0.0101477]
[1644732082881,0.02028329,2915.8,2915.6,0.66809129]
[1644732083092,0.02028329,2915.8,2915.7,1.11207552]
[1644732083275,0.02028329,2915.8,2915.7,1.60807552]
[1644732083678,0.02028329,2915.8,2915.7,2.46520552]
[1644732083882,0.01014101,2916.1,2915.8,4.2]
[1644732084083,0.01014101,2916.1,2915.9,0.496]
[1644732084285,0.02135917,2917.2,2916.0,0.4713]
[1644732084482,0.02135917,2917.2,2916.0,0.64339129]
[1644732084483,0.01014169,2916.1,2916.0,0.64339129]
[1644732084683,0.01014169,2916.1,2916.0,0.96809129]
[1644732084881,0.01014169,2916.1,2916.0,0.496]
[1644732085483,1.34461478,2917.1,2916.0,0.66809129]
[1644732085484,0.1713,2917.1,2916.0,0.66809129]
[1644732085695,0.1713,2917.1,2916.2,0.85701]
[1644732085696,0.04055698,2916.9,2916.2,0.85701]
[1644732085887,0.04055698,2916.9,2916.3,0.496]
[1644732086731,1.22102169,2917.1,2916.3,0.496]
[1644732086926,0.01014128,2916.7,2916.3,0.496]
[1644732087929,3.31720694,2917.0,2916.3,0.496]
[1644732088129,0.0101414,2916.6,2916.3,0.496]
[1644732088839,5.02233477,2916.6,2916.1,1.2354]
[1644732089038,1.07490757,2916.2,2916.1,1.2354]
[1644732089234,1.63014618,2916.2,2916.1,1.2354]
[1644732089433,0.1713,2916.2,2916.1,1.2354]
[1644732089631,0.01014146,2916.6,2916.1,1.2354]
[1644732089834,1.45870641,2916.5,2916.1,1.2354]
[1644732090272,0.88924709,2916.3,2916.1,1.2354]
[1644732090476,1.45870641,2916.2,2916.1,1.2354]
[1644732091073,4.79371638,2916.2,2916.1,1.2354]
[1644732091274,4.81860241,2916.2,2916.1,1.2354]
[1644732091675,4.81860241,2916.2,2915.5,0.25]
[1644732091676,0.32071797,2916.0,2915.8,0.01014362]
[1644732092681,0.32071797,2916.0,2915.3,0.00296248]
[1644732092878,0.32071797,2916.0,2915.8,0.01014304]
[1644732093930,0.32071797,2916.0,2915.3,0.1713]
[1644732094134,0.32071797,2916.0,2915.8,0.01014312]
[1644732095031,0.32071797,2916.0,2915.2,0.86027248]
[1644732095228,0.32071797,2916.0,2915.3,0.00296248]
[1644732095429,0.32071797,2916.0,2915.8,0.01014312]
[1644732096227,0.32071797,2916.0,2915.1,0.00296248]
[1644732096430,0.32071797,2916.0,2915.8,0.01014312]
[1644732097472,0.32071797,2916.0,2915.1,0.00296248]
[1644732097676,0.32071797,2916.0,2915.8,0.01014312]
[1644732098678,0.32071797,2916.0,2915.1,0.00296248]
[1644732098886,0.32071797,2916.0,2915.2,0.1714]
[1644732099081,0.32071797,2916.0,2915.2,0.17436248]
[1644732099286,0.32071797,2916.0,2915.2,0.00296248]
[1644732099482,0.32071797,2916.0,2915.3,0.1713]
[1644732100584,0.32071797,2916.0,2915.8,0.02928189]
[1644732102425,0.32071797,2916.0,2915.8,0.03996099]
[1644732103425,0.32071797,2916.0,2915.8,0.02928189]
[1644732103627,0.32071797,2916.0,2915.8,0.03996099]
[1644732104630,0.32071797,2916.0,2915.8,0.02928189]
[1644732104830,0.32071797,2916.0,2915.8,0.03996099]
[1644732105572,0.32071797,2916.0,2915.8,0.0106791]
[1644732105771,0.32071797,2916.0,2915.7,0.02934357]
[1644732106173,0.32071797,2916.0,2915.8,0.0106791]
[1644732106982,0.32071797,2916.0,2915.7,0.02934357]
[1644732107182,0.32071797,2916.0,2915.9,0.496]
[1644732107674,0.32071797,2916.0,2915.9,0.6673]
[1644732107877,0.32071797,2916.0,2915.9,0.496]
[1644732112028,0.1713,2917.0,2915.9,0.496]
[1644732112029,0.82509663,2917.2,2916.0,4.1707]
[1644732112241,0.82509663,2917.2,2916.1,4.346]
[1644732112242,0.04270021,2916.9,2916.1,4.346]
[1644732112479,1.458464,2916.8,2916.1,5.646]
[1644732112679,0.04270021,2916.9,2916.2,0.17209129]
[1644732112876,0.04270021,2916.9,2916.3,0.496]
[1644732113076,3.5,2917.5,2916.3,0.496]
[1644732113276,3.5,2917.5,2916.3,1.496]
[1644732113476,1.45838377,2917.4,2916.4,1.7137]
[1644732113678,1.45838377,2917.4,2916.5,0.496]
[1644732113881,1.45838377,2917.4,2916.7,0.85684]
[1644732114080,1.45838377,2917.4,2916.8,0.496]
[1644732114480,1.45838377,2917.3,2916.8,0.496]
[1644732114681,1.45838377,2917.2,2916.8,0.496]
[1644732114884,1.45838377,2917.1,2916.8,0.496]
[1644732115086,4.60210728,2917.6,2916.8,0.496]
[1644732115281,1.4583695,2917.5,2916.8,0.496]
[1644732115786,1.4583695,2917.4,2916.8,0.496]
[1644732115983,0.1713,2917.6,2916.8,0.496]
[1644732116243,1.4583695,2917.5,2916.8,0.496]
[1644732116432,0.96556887,2917.4,2916.8,0.496]
[1644732116630,1.4583695,2917.3,2916.8,0.496]
[1644732116833,1.4583695,2917.3,2916.5,1.1713]
[1644732117030,1.46905249,2917.3,2916.5,1.1713]
[1644732117233,1.4583695,2917.2,2916.5,1.1713]
[1644732117440,1.4583695,2917.2,2916.5,1.0]
[1644732117833,1.4583695,2917.2,2916.4,2.7279]
[1644732118039,1.4583695,2917.2,2916.2,0.17209129]
[1644732118040,3.35254098,2917.1,2916.2,0.17209129]
[1644732118242,3.35254098,2917.1,2916.1,0.25]
[1644732118243,1.4690529,2917.0,2916.1,0.25]
[1644732118441,1.4690529,2917.0,2915.9,0.01068757]
[1644732118442,5.43721858,2916.9,2915.9,0.01068757]
[1644732118640,1.6296695,2916.8,2915.9,0.01068757]
[1644732118838,5.0860122,2916.7,2915.9,0.01068757]
[1644732119041,1.4583695,2916.6,2915.5,0.1713]
[1644732119240,1.02135046,2916.5,2915.5,0.1713]
[1644732119445,1.4583695,2916.4,2915.9,0.01068643]
[1644732120104,0.01068409,2916.5,2915.9,0.01068643]
[1644732120274,0.1713,2916.9,2915.5,2.50062129]
[1644732120473,1.45862171,2916.8,2915.6,0.496]
[1644732120673,0.01068436,2916.3,2915.9,0.01068597]
[1644732121175,0.01068436,2916.3,2915.9,0.18277726]
[1644732121577,1.03520416,2916.9,2915.9,0.17209129]
[1644732121776,0.01068443,2916.2,2915.9,0.18277715]
[1644732121978,0.01068443,2916.2,2915.9,1.03988715]
[1644732122178,0.01068443,2916.2,2916.0,0.796]
[1644732122380,0.01068443,2916.2,2916.0,2.02]
[1644732122582,0.01068443,2916.2,2916.0,2.19209129]
[1644732122778,3.58885542,2917.2,2916.0,3.19209129]
[1644732122978,0.01068443,2916.2,2916.0,2.19209129]
[1644732123182,0.01068443,2916.2,2916.1,1.0]
[1644732123381,0.01068443,2916.2,2916.0,3.19209129]
[1644732123581,0.01068443,2916.2,2916.1,0.17209129]
[1644732123829,0.04272582,2917.1,2916.1,1.17209129]
[1644732124132,0.01068436,2916.3,2916.1,0.17209129]
[1644732125031,3.62809748,2916.9,2916.1,0.17209129]
[1644732125234,1.45863819,2916.8,2916.1,0.17209129]
[1644732125432,0.01068429,2916.3,2916.1,0.17209129]
[1644732126130,0.01068429,2916.3,2916.1,0.22089065]
[1644732126332,3.64720105,2917.1,2916.1,0.22089065]
[1644732126531,0.01068429,2916.3,2916.1,0.22089065]
[1644732126730,0.01068429,2916.3,2916.1,1.22089065]
[1644732126930,0.01068429,2916.3,2916.1,0.22089065]
[1644732127129,0.01068429,2916.3,2916.1,1.22089065]
[1644732127328,0.01068429,2916.3,2916.1,0.22089065]
[1644732127575,0.1713,2917.1,2916.1,1.22089065]
[1644732127779,0.01068429,2916.3,2916.1,1.22089065]
[1644732128274,0.01068429,2916.3,2916.1,0.22089065]
[1644732128675,0.1713,2917.0,2916.1,0.22089065]
[1644732128877,0.01068429,2916.3,2916.1,0.22089065]
[1644732129280,0.01068429,2916.3,2916.1,1.22089065]
[1644732129481,0.01068429,2916.3,2916.2,0.85698]
[1644732129681,0.01068429,2916.3,2916.2,1.52428]
[1644732129880,3.29492625,2917.3,2916.2,2.69637129]
[1644732130083,3.29492625,2917.3,2916.2,1.83939129]
[1644732130084,1.45846856,2917.2,2916.2,1.83939129]
[1644732130286,0.01068423,2916.4,2916.2,0.83939129]
[1644732131081,4.20715728,2917.3,2916.2,0.83939129]
[1644732131333,0.01068416,2916.4,2916.2,0.83939129]
[1644732131730,0.01068416,2916.4,2916.2,1.13939129]
[1644732132428,0.00400277,2917.2,2916.2,1.13939129]
[1644732132628,0.01068416,2916.4,2916.2,1.13939129]
[1644732133027,0.01068416,2916.4,2916.2,0.96809129]
[1644732133227,0.01068416,2916.4,2916.2,0.66809129]
[1644732133429,0.04272765,2917.1,2916.2,0.66809129]
[1644732133628,1.45847066,2917.0,2916.2,0.96809129]
[1644732133833,0.01068416,2916.4,2916.2,0.96809129]
[1644732134031,0.01068416,2916.4,2916.2,0.66809129]
[1644732134232,0.01068416,2916.4,2916.2,0.96809129]
[1644732134632,0.01068416,2916.4,2916.2,2.12511129]
[1644732134835,0.00400277,2917.2,2916.2,1.82511129]
[1644732135078,0.01068416,2916.4,2916.3,0.1713]
[1644732135277,0.00988208,2916.4,2916.3,0.6673]
[1644732135483,0.00988208,2916.4,2916.3,0.83939129]
[1644732135676,0.00988208,2916.4,2916.3,1.83939129]
[1644732135877,0.00400277,2917.4,2916.3,1.83939129]
[1644732136077,1.45836774,2917.3,2916.3,1.83939129]
[1644732136280,0.00400277,2917.2,2916.3,1.83939129]
[1644732136481,1.45836774,2917.1,2916.3,1.83939129]
[1644732136880,1.46237051,2917.0,2916.3,1.83939129]
[1644732137080,1.45836774,2916.9,2916.3,1.83939129]
[1644732137281,0.00400277,2917.4,2916.4,1.1507]
[1644732137480,0.00400277,2917.4,2916.5,0.496]
[1644732137680,0.00400277,2917.4,2916.5,0.66809129]
[1644732137881,1.45841143,2917.3,2916.5,0.66809129]
[1644732138085,0.00400277,2917.2,2916.5,0.66809129]
[1644732138281,1.45841143,2917.1,2916.5,1.66809129]
[1644732138480,1.45841143,2917.1,2916.5,0.66809129]
[1644732138737,1.4624142,2917.0,2916.5,1.66809129]
[1644732138931,1.45841143,2916.9,2916.5,0.66809129]
[1644732139130,1.45841143,2916.8,2916.5,1.66809129]
[1644732139330,0.00400277,2917.4,2916.5,1.66809129]
[1644732139531,1.45838908,2917.3,2916.5,1.66809129]
[1644732139735,0.01068368,2916.8,2916.5,0.66809129]
[1644732140739,1.45842202,2916.7,2916.5,0.66809129]
[1644732140933,1.45842202,2916.6,2916.5,0.496]
[1644732141131,1.45842202,2916.7,2916.5,0.496]
[1644732141335,1.45842202,2916.6,2916.3,0.1713]
[1644732141534,0.01068368,2916.8,2916.3,0.1713]
[1644732141535,1.45842202,2916.5,2916.3,0.1713]
[1644732141732,0.01068368,2916.8,2916.3,0.1713]
[1644732141931,1.45851124,2916.7,2916.3,0.1713]
[1644732142132,1.45851124,2916.6,2916.3,0.1713]
[1644732142338,1.46919526,2916.5,2916.3,0.1713]
[1644732142574,0.01068402,2916.5,2916.3,0.1713]
[1644732143176,0.04673115,2917.1,2916.3,0.34339129]
[1644732143177,0.00400277,2917.1,2916.3,0.34339129]
[1644732143381,0.01068402,2916.5,2916.3,0.34339129]
[1644732144179,0.01068402,2916.5,2916.3,0.17209129]
[1644732144383,0.00400277,2917.1,2916.3,0.17209129]
[1644732144582,0.01068402,2916.5,2916.3,0.34339129]
[1644732145384,0.01068402,2916.5,2916.3,0.17209129]
[1644732145583,0.82509663,2917.3,2916.3,0.17209129]
[1644732145785,0.01068402,2916.5,2916.3,0.17209129]
[1644732146833,0.6577994,2917.4,2916.3,0.17209129]
[1644732147036,0.00667267,2916.5,2916.3,0.34339129]
[1644732147232,0.00667267,2916.5,2916.3,1.34339129]
[1644732147632,0.00667267,2916.5,2916.3,0.34339129]
[1644732147832,0.00400277,2917.2,2916.3,1.34339129]
[1644732148031,1.45841156,2917.1,2916.3,1.17209129]
[1644732148231,0.00667267,2916.5,2916.3,0.17209129]
[1644732148431,0.00667267,2916.5,2916.3,1.17209129]
[1644732148635,0.00667267,2916.5,2916.3,0.17209129]
[1644732148837,0.00667267,2916.5,2916.3,1.17209129]
[1644732149036,0.00400277,2917.2,2916.3,0.17209129]
[1644732149236,1.45844942,2917.1,2916.3,1.17209129]
[1644732149437,0.01068867,2916.5,2916.3,1.17209129]
[1644732149837,0.01068867,2916.5,2916.3,0.17209129]
[1644732150279,0.00400277,2917.0,2916.3,0.17209129]
[1644732150580,0.01068867,2916.5,2916.3,0.17209129]
[1644732151480,0.00400277,2917.0,2916.4,0.02720041]
[1644732151681,1.45845003,2916.9,2916.4,0.02720041]
[1644732151879,0.01068867,2916.5,2916.4,0.02720041]
[1644732152679,0.00400277,2917.1,2916.4,0.02720041]
[1644732152981,0.0106886,2916.6,2916.4,0.02720041]
[1644732154034,0.00400277,2917.1,2916.4,0.02720041]
[1644732154235,0.01068853,2916.6,2916.4,0.52320041]
[1644732154436,0.01068853,2916.6,2916.5,1.02896129]
[1644732154637,0.04274771,2917.1,2916.5,1.02896129]
[1644732154638,0.00400277,2916.9,2916.6,4.2]
[1644732154833,0.04274771,2917.1,2916.7,0.496]
[1644732155031,0.04274771,2917.1,2916.7,1.6673]
[1644732155232,0.6577994,2917.8,2916.7,1.6673]
[1644732155433,0.6577994,2917.8,2916.7,0.6673]
[1644732155630,3.93427565,2917.8,2916.7,0.6673]
[1644732156032,1.45817632,2917.7,2916.7,0.6673]
[1644732156230,0.00400277,2917.6,2916.7,0.6673]
[1644732156435,1.45817632,2917.5,2916.7,0.6673]
[1644732156829,1.46217909,2917.4,2916.7,0.6673]
[1644732157029,1.45817632,2917.3,2916.9,0.85676]
[1644732157230,1.45817632,2917.2,2917.0,0.496]
[1644732157493,0.00400277,2917.7,2917.1,3.5]
[1644732157696,1.30144362,2918.7,2917.1,3.5]
[1644732157697,1.45798253,2917.6,2917.3,6.204]
[1644732157993,0.00400277,2918.3,2917.4,0.496]
[1644732158191,1.45789655,2918.2,2917.4,1.496]
[1644732158391,2.88345117,2918.7,2917.4,2.35247]
[1644732158392,1.46189932,2918.3,2917.4,2.35247]
[1644732158593,0.00400277,2918.1,2917.4,2.35247]
[1644732158796,1.45789655,2918.0,2917.5,1.5483]
[1644732159001,1.45789655,2917.9,2917.6,0.496]
[1644732159198,1.45789655,2917.9,2917.6,0.6673]
[1644732159396,1.45789655,2917.9,2917.6,0.496]
[1644732159809,1.45789655,2917.9,2917.7,3.16506259]
[1644732159996,1.45789655,2917.9,2917.8,0.496]
[1644732160197,1.46858335,2917.9,2917.8,4.5823689]
[1644732160398,1.46858335,2917.9,2917.8,1.35255]
[1644732161235,1.45789655,2917.9,2917.8,1.35255]
[1644732161531,1.45789655,2917.9,2917.8,2.35255]
[1644732162128,1.45789655,2917.9,2917.8,1.35255]
[1644732162431,1.45789655,2917.9,2917.8,0.496]
[1644732162630,0.01068667,2918.0,2917.8,0.496]
[1644732162834,0.99199999,2917.7,2917.5,0.85665]
[1644732163128,0.99199999,2917.7,2917.6,0.496]
[1644732163730,2.44999468,2917.7,2917.6,0.496]
[1644732163931,2.44999468,2917.7,2917.4,1.3]
[1644732164135,1.45799469,2917.6,2917.4,1.3]
[1644732164330,1.45799469,2917.6,2917.3,1.096]
[1644732164530,1.46199746,2917.6,2917.3,0.796]
[1644732164730,0.00400277,2917.6,2917.3,1.796]
[1644732164976,0.01068722,2917.6,2917.3,0.796]
[1644732165178,0.01468999,2917.6,2917.3,3.9637457]
[1644732165375,0.01468999,2917.6,2917.4,1.0]
[1644732165575,0.01068722,2917.6,2917.4,1.3]
[1644732165777,0.01068722,2917.6,2917.4,0.3]
[1644732165975,0.99199999,2917.7,2917.3,2.096]
[1644732166177,1.47270553,2917.6,2917.3,2.096]
[1644732166377,0.01068715,2917.6,2917.3,2.096]
[1644732166579,0.01468992,2917.6,2917.3,2.096]
[1644732166784,0.01468992,2917.6,2917.3,1.096]
[1644732166977,0.01468992,2917.6,2917.3,0.496]
[1644732167178,0.00400277,2917.6,2917.3,0.496]
[1644732167377,0.01068722,2917.6,2917.3,0.496]
[1644732167577,0.01468999,2917.6,2917.3,0.496]
[1644732168177,0.01468999,2917.6,2917.4,0.17209129]
[1644732168380,1.45808942,2917.5,2917.3,0.496]
[1644732168732,1.45808942,2917.5,2916.9,1.30269129]
[1644732168733,1.45808942,2917.4,2916.9,0.496]
[1644732168933,1.45808942,2917.3,2916.8,4.1191]
[1644732169135,0.01068722,2917.6,2916.8,4.1191]
[1644732169136,0.01468999,2917.6,2916.8,1.0]
[1644732169340,1.45821779,2917.5,2916.9,1.0]
[1644732169633,1.45821779,2917.5,2916.7,0.25]
[1644732169634,0.00400277,2917.4,2916.8,1.38729129]
[1644732169837,1.46890535,2917.3,2916.8,1.38729129]
[1644732170034,0.01068756,2917.3,2916.9,1.02890129]
[1644732170234,0.01068756,2917.3,2916.9,1.82490129]
[1644732170435,0.01068756,2917.3,2916.9,3.12490129]
[1644732170632,0.01068756,2917.3,2916.9,2.82490129]
[1644732170837,0.00400277,2917.6,2916.9,1.96809129]
[1644732171037,1.45816167,2917.5,2917.4,0.03231149]
[1644732175786,1.25816167,2917.5,2917.4,0.03231149]
[1644732176252,1.25816167,2917.5,2916.9,1.66809129]
[1644732176430,0.00400277,2917.4,2916.9,1.96809129]
[1644732176630,0.00400277,2917.4,2916.9,0.96809129]
[1644732176830,0.00400277,2917.6,2916.9,1.96809129]
[1644732177133,0.01068763,2917.3,2916.9,0.96809129]
[1644732177332,0.01068763,2917.3,2916.9,1.96809129]
[1644732177629,0.01068763,2917.3,2916.9,0.96809129]
[1644732178030,0.00400277,2917.6,2916.9,0.66809129]
[1644732178231,0.0106877,2917.2,2916.9,0.66809129]
[1644732179238,0.00400277,2917.6,2917.0,3.18309379]
[1644732179439,0.01068777,2917.2,2917.0,3.67909379]
[1644732179744,0.01068777,2917.2,2917.1,1.17209129]
[1644732180378,0.00400277,2917.6,2917.1,1.17209129]
[1644732180577,0.01068763,2917.3,2917.1,1.20472419]
[1644732180777,0.01068763,2917.3,2917.1,0.20472419]
[1644732181380,0.01068763,2917.3,2917.1,0.0326329]
[1644732181578,0.00400277,2917.6,2917.1,0.0326329]
[1644732181779,0.01068756,2917.3,2917.1,0.0326329]
[1644732182782,1.02062891,2917.5,2917.1,0.0326329]
[1644732182783,0.00400277,2917.4,2917.1,0.0326329]
[1644732182980,0.01068756,2917.3,2917.1,0.0326329]
[1644732184034,0.00400277,2917.4,2917.1,0.0326329]
[1644732184239,0.01068756,2917.3,2917.1,0.0326329]
[1644732185136,0.00400277,2917.4,2917.1,0.0326329]
[1644732185335,0.01068756,2917.3,2917.1,0.0326329]
[1644732186134,0.01068756,2917.3,2916.6,3.2044]
[1644732186335,0.00400277,2917.6,2916.6,3.2044]
[1644732186536,0.01068756,2917.3,2916.6,3.2044]
[1644732186735,0.01068756,2917.3,2916.7,0.1713]
[1644732187584,0.00400277,2917.6,2916.7,0.1713]
[1644732187780,0.01068784,2917.1,2916.7,0.1713]
[1644732188784,0.00400277,2917.6,2916.7,0.1713]
[1644732188983,0.01068798,2917.0,2916.7,0.1713]
[1644732189883,0.00400277,2917.6,2916.7,0.1713]
[1644732190284,0.01068805,2917.0,2916.9,0.03231775]
[1644732191329,0.01068791,2917.1,2916.9,0.03231775]
[1644732192329,0.00400277,2917.6,2916.9,0.03231775]
[1644732192531,0.01068784,2917.1,2916.9,0.03231775]
[1644732193534,0.04674772,2917.6,2916.9,0.03231775]
[1644732193535,0.00400277,2917.6,2916.9,0.03231775]
[1644732193738,0.01068784,2917.1,2916.9,0.03231775]
[1644732194536,0.01068784,2917.1,2916.7,0.82631415]
[1644732194736,0.00400277,2917.6,2916.7,0.82631415]
[1644732194980,0.01068784,2917.1,2916.7,0.82631415]
[1644732195780,0.01068784,2917.1,2916.6,3.2044]
[1644732195981,0.00400277,2917.6,2916.6,6.36572614]
[1644732196182,1.50100088,2917.5,2917.1,0.03231525]
[1644732196383,1.45825538,2917.4,2917.1,0.03231525]
[1644732197284,1.45825538,2917.3,2917.1,0.03231525]
[1644732197485,1.45825538,2917.2,2917.1,0.03231525]
[1644732198480,1.45825538,2917.3,2917.1,0.03231525]
[1644732198741,1.45825538,2917.2,2917.1,0.03231525]
[1644732200937,1.45825538,2917.2,2916.6,1.0]
[1644732200938,0.01815324,2917.2,2916.4,6.35417]
[1644732201136,1.45825538,2917.1,2916.4,6.35417]
[1644732201336,1.45825538,2917.1,2916.4,2.51717]
[1644732201737,1.16819198,2916.9,2916.4,1.1642]
[1644732201939,1.45825538,2916.8,2916.4,1.1642]
[1644732202335,1.45825538,2916.8,2916.3,1.0]
[1644732203384,1.45825538,2916.7,2916.3,1.1714]
[1644732203583,0.01068828,2916.7,2916.3,1.1714]
[1644732203786,1.45843802,2916.6,2916.3,0.1714]
[1644732204385,0.89866015,2917.0,2916.3,0.1714]
[1644732204588,0.01068805,2916.7,2916.3,0.1714]
[1644732204789,1.45843327,2916.6,2916.3,0.1714]
[1644732204987,1.45843327,2916.6,2916.2,0.18198999]
[1644732205386,0.01068805,2916.7,2916.2,0.01068999]
[1644732205588,1.40843427,2916.6,2916.1,1.1713]
[1644732205787,0.86160521,2916.9,2916.1,1.1713]
[1644732205788,0.01068794,2916.7,2916.2,0.01068988]
[1644732206231,0.03230519,2916.7,2916.2,0.01068988]
[1644732206943,0.03230519,2916.7,2916.2,0.01068999]
[1644732206944,0.1713,2916.6,2916.2,0.01068999]
[1644732207933,0.1713,2916.6,2916.1,0.1713]
[1644732208334,0.1713,2916.6,2916.2,0.01068988]
[1644732209139,0.1713,2916.6,2916.1,0.1713]
[1644732209338,0.1713,2916.6,2915.9,0.85712]
[1644732209540,0.1713,2916.6,2916.2,0.01068988]
[1644732210383,0.1713,2916.6,2915.9,0.85712]
[1644732210684,0.1713,2916.6,2916.2,0.01068988]
[1644732210882,0.02155057,2916.5,2916.2,0.01068988]
[1644732211683,0.02155057,2916.5,2915.7,0.00296248]
[1644732211886,0.02155057,2916.5,2916.2,0.01068981]
[1644732212683,0.02155057,2916.5,2915.7,0.00296248]
[1644732213084,0.02155057,2916.5,2916.2,0.01068981]
[1644732213939,0.02155057,2916.5,2915.9,1.496]
[1644732214338,0.02155057,2916.5,2916.2,0.01068981]
[1644732215140,0.02155057,2916.5,2915.9,1.496]
[1644732215341,0.02155057,2916.5,2916.2,0.01068981]
[1644732216442,0.02155057,2916.5,2915.9,0.496]
[1644732216643,0.02155057,2916.5,2916.2,0.01068981]
[1644732217585,0.02155057,2916.5,2915.9,4.6351061]
[1644732217789,5.057e-05,2916.5,2916.2,0.01068981]
[1644732217985,5.057e-05,2916.5,2916.3,0.6673]
[1644732218189,5.057e-05,2916.5,2916.4,3.22877933]
[1644732218384,5.057e-05,2916.5,2916.4,3.89607933]
[1644732218583,5.057e-05,2916.5,2916.4,0.496]
[1644732218791,5.057e-05,2916.5,2916.4,1.496]
[1644732218987,5.057e-05,2916.5,2916.4,0.496]
[1644732219386,5.057e-05,2916.5,2916.4,1.496]
[1644732220587,5.057e-05,2916.5,2916.4,0.496]
[1644732220987,0.01793103,2916.5,2916.4,0.496]
[1644732225989,0.01793103,2916.5,2916.0,3.9536]
[1644732226188,0.01793103,2916.5,2916.2,0.01068999]
[1644732226189,1.45854477,2916.4,2916.2,0.01068999]
[1644732226491,0.97219621,2916.3,2916.2,0.01068999]
[1644732226687,2.43074098,2916.3,2916.2,0.01068999]
[1644732227088,1.45854477,2916.3,2915.9,0.00299579]
[1644732227488,1.45854477,2916.3,2915.5,0.1713]
[1644732227489,1.45854477,2916.3,2916.1,0.01068994]
[1644732228391,1.45854477,2916.3,2915.6,0.00299579]
[1644732228587,1.45854477,2916.3,2916.1,0.01069001]
[1644732229637,1.45854477,2916.3,2915.6,0.00299579]
[1644732229836,1.45854477,2916.3,2916.1,0.01069001]
[1644732230837,1.45854477,2916.3,2915.6,0.00299579]
[1644732231038,1.45854477,2916.3,2916.1,0.01069001]
[1644732232040,1.45854477,2916.3,2915.6,0.00299579]
[1644732232242,1.45854477,2916.3,2916.1,0.01069001]
[1644732233083,1.45854477,2916.3,2915.6,0.00299579]
[1644732233484,1.45854477,2916.3,2916.1,0.01069001]
[1644732234291,1.45854477,2916.3,2915.6,0.00299579]
[1644732234687,1.45854477,2916.3,2916.1,0.01069001]
[1644732235505,1.45854477,2916.3,2915.6,0.00299579]
[1644732235892,4.72523427,2916.2,2916.1,0.01069001]
[1644732236093,0.02138001,2916.0,2915.6,0.00299579]
[1644732236344,1.62984477,2915.9,2915.6,0.00299579]
[1644732236540,1.45854477,2915.8,2915.6,0.00299579]
[1644732236946,0.95020041,2915.1,2914.8,0.00299579]
[1644732237143,0.1713,2915.9,2914.7,1.2158]
[1644732237342,1.45902617,2915.8,2914.8,0.00299579]
[1644732237541,1.45902617,2915.8,2914.5,4.5014]
[1644732237542,0.1715,2915.7,2914.6,0.00299579]
[1644732237742,1.45902617,2915.6,2914.6,0.00299579]
[1644732238142,1.45902617,2915.5,2914.6,0.00299579]
[1644732238444,0.1715,2915.9,2915.0,0.0036779]
[1644732238445,4.18399816,2915.4,2915.0,0.0036779]
[1644732238644,0.89329862,2915.4,2915.0,0.0036779]
[1644732239248,0.89329862,2915.4,2914.6,0.00299579]
[1644732239451,0.89329862,2915.4,2915.1,0.0103385]
[1644732240291,3.38119425,2915.3,2915.1,0.0103385]
[1644732240487,3.38119425,2915.3,2914.6,0.00299579]
[1644732240688,3.38119425,2915.3,2915.1,0.01033844]
[1644732240887,3.30175106,2915.3,2915.1,0.01033844]
[1644732241490,3.30175106,2915.3,2914.7,0.04135997]
[1644732241689,3.30175106,2915.3,2914.6,0.00299579]
[1644732241889,3.30175106,2915.3,2915.1,0.01013841]
[1644732242105,3.31125204,2915.3,2915.1,0.01013841]
[1644732242292,0.1715,2915.8,2915.1,0.01013841]
[1644732242495,1.45911744,2915.7,2915.1,0.01013841]